bitfinex-derivatives/quotes_SOLF0:USTF0_20250318
["timestamp","ask_amount","ask_price","bid_price","bid_amount"]
[1742286635212,49.7971098,125.44,125.43,0.05709991]
[1742286635910,0.05327147,125.45,125.43,0.05709991]
[1742286636705,0.05327147,125.45,125.43,13.32170971]
[1742286637110,0.05327147,125.45,125.44,13.2646098]
[1742286637515,0.05327147,125.45,125.44,21.2371098]
[1742286639211,0.05327147,125.45,125.44,7.9725]
[1742286645524,0.05327147,125.45,125.44,36.5525]
[1742286646428,0.05327147,125.45,125.44,49.8171098]
[1742286649027,36.5283,125.51,125.49,7.9692]
[1742286649328,163.11604202,125.52,125.49,7.9692]
[1742286649631,171.08384202,125.52,125.5,7.9685]
[1742286649817,142.52384202,125.52,125.5,7.9685]
[1742286650018,121.34247616,125.52,125.51,7.9681]
[1742286650325,121.34247616,125.52,125.5,0.05548946]
[1742286650526,41.8246098,125.51,125.5,0.05548946]
[1742286650726,41.8246098,125.51,125.46,291.64]
[1742286651226,41.8246098,125.51,125.46,304.9046098]
[1742286651424,49.7930098,125.51,125.48,7.9697]
[1742286651824,49.7930098,125.51,125.46,304.9046098]
[1742286652020,28.56,125.51,125.48,0.05061628]
[1742286652832,41.8246098,125.51,125.48,0.05061628]
[1742286653032,13.2646098,125.5,125.48,0.05061628]
[1742286653328,7.9693,125.49,125.48,0.05061628]
[1742286657731,49.7739098,125.49,125.48,0.05061628]
[1742286659237,36.5093,125.49,125.48,0.05061628]
[1742286660235,180.48434192,125.49,125.48,0.05061628]
[1742286660938,7.9728,125.44,125.42,263.04]
[1742286662139,7.9732,125.43,125.42,263.09222889]
[1742286665341,21.2378098,125.43,125.42,0.05222889]
[1742286666437,49.7578098,125.43,125.42,0.05222889]
[1742286667137,49.7578098,125.43,125.42,2.889e-05]
[1742286667337,83.511755,125.43,125.42,2.889e-05]
[1742286667932,7.9757,125.39,125.38,263.08]
[1742286668441,33.7539452,125.43,125.38,291.62]
[1742286668747,33.7539452,125.43,125.41,13.2646098]
[1742286668938,33.81074136,125.43,125.42,7.9738]
[1742286669839,33.81074136,125.43,125.41,50.05706199]
[1742286670238,33.81074136,125.43,125.42,7.9738]
[1742286671135,0.05679616,125.43,125.42,7.9738]
[1742286673142,19.35804324,125.45,125.44,7.9725]
[1742286673346,44.18616731,125.46,125.44,305.2446098]
[1742286673746,44.18616731,125.46,125.45,7.9719]
[1742286673949,11.07800196,125.48,125.44,305.2446098]
[1742286674346,0.05766609,125.47,125.45,0.05192939]
[1742286674950,0.05766609,125.47,125.45,8.02332939]
[1742286675152,0.05766609,125.47,125.45,0.05192939]
[1742286677049,0.05766609,125.47,125.46,7.9713]
[1742286678252,0.05766609,125.47,125.45,36.84342939]
[1742286680356,0.05766609,125.47,125.45,8.02342939]
[1742286680956,0.05766609,125.47,125.46,7.9713]
[1742286683162,0.05766609,125.47,125.45,21.28813919]
[1742286683956,0.05766609,125.47,125.46,7.9713]
[1742286685256,0.05766609,125.47,125.45,21.28813919]
[1742286685955,0.05766609,125.47,125.45,8.02352939]
[1742286686261,0.05766609,125.47,125.45,21.28813919]
[1742286688561,8.02856609,125.47,125.45,0.05192939]
[1742286689065,0.05766609,125.47,125.45,21.28813919]
[1742286689254,0.05766609,125.47,125.46,13.2646098]
[1742286689564,0.05766609,125.47,125.46,41.9646098]
[1742286689762,0.05766609,125.47,125.46,49.9359098]
[1742286692664,0.05766609,125.47,125.46,52.1146098]
[1742286693364,0.05766609,125.47,125.46,49.9359098]
[1742286694567,0.05766609,125.47,125.46,41.9646098]
[1742286695666,0.05766609,125.47,125.46,49.9359098]
[1742286697964,0.05766609,125.47,125.46,41.9646098]
[1742286699868,0.05766609,125.47,125.46,49.9359098]
[1742286701874,0.05766609,125.47,125.46,41.9646098]
[1742286702173,0.05766609,125.47,125.46,13.2646098]
[1742286702370,7.9713,125.46,125.45,0.05192939]
[1742286702869,0.05766609,125.47,125.45,0.05192939]
[1742286703370,0.05766609,125.47,125.45,8.02352939]
[1742286705081,0.05766609,125.47,125.45,21.28813919]
[1742286705468,0.05766609,125.47,125.46,7.9713]
[1742286706277,44.18616731,125.51,125.45,41.91653919]
[1742286706480,44.18616731,125.51,125.49,13.2646098]
[1742286706882,44.18616731,125.51,125.5,7.9687]
[1742286707786,244.5595388,125.51,125.5,7.9687]
[1742286708285,244.5595388,125.51,125.49,21.2932816]
[1742286708489,252.5279388,125.51,125.49,21.2932816]
[1742286708689,244.5595388,125.51,125.49,0.0595718]
[1742286708990,244.5595388,125.51,125.49,8.0287718]
[1742286709791,252.5278388,125.51,125.49,8.0287718]
[1742286710194,244.5595388,125.51,125.5,7.9687]
[1742286711293,244.5595388,125.51,125.49,21.2931816]
[1742286711493,41.43450393,125.52,125.49,21.2931816]
[1742286711996,7.9681,125.51,125.49,21.2931816]
[1742286712187,33.46680393,125.52,125.5,7.9687]
[1742286712387,33.46680393,125.52,125.49,0.0595718]
[1742286712592,7.9687,125.5,125.49,0.0595718]
[1742286716895,19.05191934,125.51,125.49,0.0595718]
[1742286717693,7.9687,125.5,125.49,0.0595718]
[1742286717889,11.08351934,125.51,125.49,0.0595718]
[1742286718195,19.05211934,125.51,125.49,0.0595718]
[1742286718694,11.08351934,125.51,125.49,0.0595718]
[1742286718896,7.9687,125.5,125.49,0.0595718]
[1742286720395,19.05201934,125.51,125.49,8.0288718]
[1742286721094,11.08351934,125.51,125.5,7.9687]
[1742286724696,11.14427391,125.52,125.49,13.3241816]
[1742286724891,11.14427391,125.52,125.51,13.2646098]
[1742286725596,11.14427391,125.52,125.51,21.2327098]
[1742286726392,121.4338249,125.53,125.52,7.9674]
[1742286726597,156.37627193,125.54,125.52,41.7446098]
[1742286726797,156.37627193,125.54,125.52,28.48]
[1742286727099,156.37627193,125.54,125.5,312.7129098]
[1742286727297,164.34277193,125.54,125.5,304.7446098]
[1742286727592,0.05136252,125.53,125.51,21.29001156]
[1742286727799,0.05136252,125.53,125.51,13.32201156]
[1742286727993,8.01826252,125.53,125.51,13.32201156]
[1742286729001,0.05136252,125.53,125.52,13.2646098]
[1742286729999,8.01816252,125.53,125.52,13.2646098]
[1742286730399,0.05136252,125.53,125.52,13.2646098]
[1742286730602,0.05136252,125.53,125.52,49.8120098]
[1742286731493,369.38606014,125.6,125.52,49.8046098]
[1742286731696,353.37285807,125.6,125.57,13.2646098]
[1742286732100,353.37285807,125.6,125.58,13.2646098]
[1742286732499,12.197,125.6,125.58,13.2646098]
[1742286732698,12.24119908,125.6,125.58,13.31491879]
[1742286734600,12.24119908,125.6,125.58,0.05030899]
[1742286734801,7.963,125.59,125.58,0.05030899]
[1742286735502,12.24119908,125.6,125.58,0.05030899]
[1742286736805,12.24119908,125.6,125.58,8.01390899]
[1742286736998,4.27849908,125.6,125.58,8.01390899]
[1742286737208,0.04419908,125.6,125.58,13.31491879]
[1742286737800,0.04419908,125.6,125.58,0.05030899]
[1742286738204,0.04419908,125.6,125.59,7.963]
[1742286738606,0.04419908,125.6,125.58,13.31491879]
[1742286738810,0.04419908,125.6,125.58,21.27821879]
[1742286739105,0.04419908,125.6,125.58,13.31491879]
[1742286739706,0.04419908,125.6,125.59,7.963]
[1742286740209,0.04419908,125.6,125.59,49.8076098]
[1742286741106,0.04419908,125.6,125.59,36.543]
[1742286741803,0.04419908,125.6,125.59,49.8076098]
[1742286742005,0.04419908,125.6,125.59,36.543]
[1742286742310,8.00659908,125.6,125.59,28.58]
[1742286742505,8.00659908,125.6,125.58,21.27821879]
[1742286742706,8.00659908,125.6,125.58,0.05030899]
[1742286742907,0.04419908,125.6,125.58,0.05030899]
[1742286743605,13.30880888,125.6,125.58,0.05030899]
[1742286743999,13.2646098,125.59,125.58,0.05030899]
[1742286744203,0.04419908,125.6,125.58,0.05030899]
[1742286744412,0.04419908,125.6,125.58,13.31491879]
[1742286744611,0.04419908,125.6,125.58,21.27831879]
[1742286745110,0.04419908,125.6,125.58,0.05030899]
[1742286745311,0.04419908,125.6,125.58,8.01360899]
[1742286745503,8.00669908,125.6,125.58,0.05030899]
[1742286745709,0.04419908,125.6,125.58,0.05030899]
[1742286745909,13.2646098,125.59,125.58,0.05030899]
[1742286746314,21.2276098,125.59,125.58,0.05030899]
[1742286747212,32.83899908,125.6,125.58,8.01380899]
[1742286747515,30.82889908,125.6,125.58,0.05030899]
[1742286747716,7.963,125.59,125.58,0.05030899]
[1742286748916,52.05630888,125.6,125.58,0.05030899]
[1742286749116,23.45630888,125.6,125.58,0.05030899]
[1742286749615,7.963,125.59,125.58,0.05030899]
[1742286750119,23.45620888,125.6,125.58,0.05030899]
[1742286750614,7.963,125.59,125.58,0.05030899]
[1742286751014,10.19159908,125.6,125.58,8.01380899]
[1742286751314,2.22889908,125.6,125.58,0.05030899]
[1742286751516,7.963,125.59,125.58,0.05030899]
[1742286752015,2.22889908,125.6,125.58,0.05030899]
[1742286752216,10.19159908,125.6,125.58,0.05030899]
[1742286753819,7.963,125.59,125.58,0.05030899]
[1742286754117,2.22889908,125.6,125.58,0.05030899]
[1742286754434,10.19149908,125.6,125.58,8.01380899]
[1742286754612,10.19149908,125.6,125.58,0.05030899]
[1742286756116,7.963,125.59,125.58,0.05030899]
[1742286756323,2.22889908,125.6,125.58,8.01390899]
[1742286757514,2.22889908,125.6,125.59,7.963]
[1742286757716,0.04419908,125.6,125.59,7.963]
[1742286757915,0.04419908,125.6,125.58,13.31491879]
[1742286758215,0.04419908,125.6,125.58,21.27821879]
[1742286759021,8.00669908,125.6,125.58,0.05030899]
[1742286759214,0.04419908,125.6,125.58,0.05030899]
[1742286759722,0.04419908,125.6,125.58,8.01370899]
[1742286760222,8.00659908,125.6,125.58,8.01370899]
[1742286761415,0.04419908,125.6,125.59,7.963]
[1742286764521,0.04419908,125.6,125.58,21.27821879]
[1742286764721,0.04419908,125.6,125.58,13.31491879]
[1742286765121,0.04419908,125.6,125.59,7.963]
[1742286774120,0.04419908,125.6,125.59,36.383]
[1742286774516,9.908e-05,125.6,125.59,49.6476098]
[1742286775727,9.908e-05,125.6,125.59,28.42]
[1742286776323,9.908e-05,125.6,125.59,36.383]
[1742286780730,9.908e-05,125.6,125.59,28.42]
[1742286780934,9.908e-05,125.6,125.58,276.09491879]
[1742286781232,9.908e-05,125.6,125.59,7.963]
[1742286782724,9.908e-05,125.6,125.46,78.48703115]
[1742286782725,21.22470888,125.6,125.53,262.76]
[1742286782928,13.2646098,125.56,125.53,262.76]
[1742286783935,21.28021787,125.56,125.53,270.78175682]
[1742286784228,8.01560807,125.56,125.53,270.78175682]
[1742286785332,8.01560807,125.56,125.54,7.9661]
[1742286785534,8.01560807,125.56,125.53,262.81525682]
[1742286785735,0.05040807,125.56,125.53,262.81525682]
[1742286786136,8.01580807,125.56,125.53,262.81525682]
[1742286786536,0.05040807,125.56,125.53,262.81525682]
[1742286786738,8.01530807,125.56,125.54,7.9659]
[1742286788939,0.05040807,125.56,125.54,7.9659]
[1742286789843,8.01530807,125.56,125.54,7.9659]
[1742286790643,8.01530807,125.56,125.53,270.78175682]
[1742286790844,0.05040807,125.56,125.53,262.81525682]
[1742286791044,13.31501787,125.56,125.53,262.81525682]
[1742286791446,0.05040807,125.56,125.53,262.81525682]
[1742286791648,0.05040807,125.56,125.54,7.9661]
[1742286791950,8.01560807,125.56,125.53,262.81525682]
[1742286792346,0.05040807,125.56,125.53,262.81525682]
[1742286792747,0.05040807,125.56,125.54,7.9656]
[1742286793342,8.01540807,125.56,125.53,270.78175682]
[1742286793548,21.28001787,125.56,125.53,270.78175682]
[1742286793945,0.05040807,125.56,125.54,7.9662]
[1742286795147,0.05040807,125.56,125.55,21.2301098]
[1742286795349,0.05040807,125.56,125.55,49.6501098]
[1742286796949,0.05040807,125.56,125.55,36.3855]
[1742286797444,0.05040807,125.56,125.55,49.6501098]
[1742286799751,0.05040807,125.56,125.55,36.3855]
[1742286799944,0.05040807,125.56,125.54,7.9658]
[1742286801247,8.01560807,125.56,125.53,312.44626662]
[1742286801952,8.01560807,125.56,125.54,7.9661]
[1742286802350,7.9656,125.55,125.53,312.44636662]
[1742286802552,0.05040807,125.56,125.53,312.44636662]
[1742286802753,0.05040807,125.56,125.53,270.78175682]
[1742286802953,13.31501787,125.56,125.53,262.81525682]
[1742286803154,7.966,125.55,125.53,262.81525682]
[1742286805555,7.9662,125.54,125.53,262.81525682]
[1742286805758,13.31501787,125.56,125.53,262.81525682]
[1742286806155,7.9658,125.55,125.53,262.81525682]
[1742286807054,7.9662,125.54,125.53,262.81525682]
[1742286807651,0.05040807,125.56,125.53,262.81525682]
[1742286807853,7.966,125.55,125.53,262.81525682]
[1742286808655,7.966,125.55,125.53,276.07986662]
[1742286809261,7.966,125.55,125.53,262.81525682]
[1742286809959,7.9662,125.54,125.53,262.81525682]
[1742286810360,0.05040807,125.56,125.53,262.81525682]
[1742286810560,13.31501787,125.56,125.53,262.81525682]
[1742286810760,13.2646098,125.55,125.53,262.81525682]
[1742286811360,7.9662,125.54,125.53,262.81525682]
[1742286818252,7.9659,125.55,125.53,262.81525682]
[1742286818457,0.05040807,125.56,125.53,262.81525682]
[1742286818759,8.01560807,125.56,125.53,270.78175682]
[1742286818963,0.05040807,125.56,125.53,270.78175682]
[1742286819258,7.9655,125.55,125.53,270.78175682]
[1742286819457,7.9655,125.55,125.53,262.81525682]
[1742286820162,0.05040807,125.56,125.54,13.2646098]
[1742286820560,0.05040807,125.56,125.54,7.9659]
[1742286821161,8.01560807,125.56,125.53,312.30636662]
[1742286821358,0.05040807,125.56,125.53,304.33986662]
[1742286821759,8.01550807,125.56,125.53,312.30626662]
[1742286822458,0.05040807,125.56,125.54,7.9661]
[1742286822658,0.05040807,125.56,125.54,13.2646098]
[1742286823063,0.05040807,125.56,125.55,7.9655]
[1742286823369,0.05040807,125.56,125.54,13.2646098]
[1742286824063,0.05040807,125.56,125.55,21.2301098]
[1742286824559,0.05040807,125.56,125.55,49.4701098]
[1742286824765,0.05040807,125.56,125.55,36.2055]
[1742286825066,0.05040807,125.56,125.55,28.24]
[1742286825673,0.05040807,125.56,125.55,36.2055]
[1742286826365,8.01530807,125.56,125.55,28.24]
[1742286827864,0.05040807,125.56,125.55,28.24]
[1742286828065,0.05040807,125.56,125.55,49.4701098]
[1742286828271,0.05040807,125.56,125.55,36.2055]
[1742286828674,0.05040807,125.56,125.55,28.24]
[1742286829371,0.05040807,125.56,125.55,36.2055]
[1742286834680,0.05040807,125.56,125.55,49.4701098]
[1742286835975,11.06280654,125.6,125.59,7.963]
[1742286836481,11.06280654,125.6,125.59,312.2676098]
[1742286836784,131.14674634,125.62,125.59,304.3046098]
[1742286836973,131.14674634,125.62,125.61,13.2646098]
[1742286837179,131.14674634,125.62,125.61,41.4846098]
[1742286837490,131.14674634,125.62,125.61,49.4463098]
[1742286839585,7.9589,125.66,125.62,7.9605]
[1742286839774,7.9592,125.65,125.62,21.2251098]
[1742286839979,7.9592,125.65,125.63,0.05639193]
[1742286840680,7.9598,125.64,125.63,0.05639193]
[1742286842388,41.4646098,125.64,125.59,262.84]
[1742286842579,41.4646098,125.64,125.59,259.5273]
[1742286842580,13.2646098,125.6,125.59,259.5273]
[1742286842778,13.2646098,125.6,125.59,252.9003]
[1742286843182,21.2270098,125.6,125.59,252.9003]
[1742286844579,8.01849193,125.61,125.59,252.9003]
[1742286844789,0.05639193,125.61,125.6,28.92]
[1742286844993,15.03941582,125.66,125.63,7.96]
[1742286845181,15.03941582,125.66,125.65,6.6323049]
[1742286845381,169.64088173,125.69,125.64,6.6323049]
[1742286845682,13.2646098,125.67,125.62,13.2646098]
[1742286845886,13.2646098,125.66,125.61,42.2446098]
[1742286846088,7.9594,125.65,125.63,0.05141247]
[1742286846280,13.2646098,125.68,125.63,13.31602227]
[1742286846791,13.2646098,125.66,125.63,0.05141247]
[1742286846987,13.2646098,125.65,125.63,0.05141247]
[1742286847185,21.2242098,125.65,125.63,0.05141247]
[1742286848493,7.9598,125.64,125.63,0.05141247]
[1742286848681,21.2244098,125.64,125.63,0.05141247]
[1742286851590,13.2646098,125.64,125.63,0.05141247]
[1742286851790,29.02,125.65,125.63,0.05141247]
[1742286852183,4.1158,125.67,125.63,0.05141247]
[1742286852184,29.02,125.67,125.63,0.05141247]
[1742286852495,29.02,125.67,125.63,13.31602227]
[1742286853083,36.978,125.67,125.64,7.9595]
[1742286853290,29.02,125.67,125.63,13.31602227]
[1742286854089,36.9782,125.67,125.64,7.9598]
[1742286854587,21.2216098,125.69,125.66,7.9585]
[1742286854789,42.3246098,125.69,125.64,13.2646098]
[1742286854989,13.2646098,125.67,125.62,42.3046098]
[1742286855193,7.9587,125.66,125.65,0.05033705]
[1742286856096,21.2228098,125.67,125.65,0.05033705]
[1742286856693,7.9586,125.66,125.65,0.05033705]
[1742286857099,21.2228098,125.67,125.65,0.05033705]
[1742286857395,29.06,125.68,125.65,8.00943705]
[1742286857592,21.2215098,125.69,125.65,0.05033705]
[1742286857799,21.2215098,125.69,125.66,7.9582]
[1742286858692,7.9576,125.68,125.65,8.00933705]
[1742286858994,13.2646098,125.69,125.65,0.05033705]
[1742286859196,4.204,125.71,125.65,0.05033705]
[1742286859496,13.2646098,125.7,125.65,291.77033705]
[1742286859995,7.9567,125.69,125.66,7.958]
[1742286862196,21.2210098,125.7,125.67,7.9577]
[1742286862496,13.2646098,125.7,125.65,305.03494685]
[1742286862887,21.2211098,125.7,125.66,7.9583]
[1742286863089,13.2646098,125.7,125.66,7.9583]
[1742286863494,7.957,125.69,125.66,7.9583]
[1742286864394,21.2210098,125.7,125.67,7.9579]
[1742286864798,13.2646098,125.7,125.67,0.05083194]
[1742286865093,7.9568,125.69,125.67,0.05083194]
[1742286865498,7.9568,125.69,125.67,8.00863194]
[1742286865699,46.4286098,125.71,125.67,0.05083194]
[1742286865889,33.164,125.71,125.67,0.05083194]
[1742286866094,7.957,125.69,125.67,0.05083194]
[1742286867002,21.2209098,125.7,125.67,8.00863194]
[1742286867497,13.2646098,125.7,125.68,7.9573]
[1742286867796,33.164,125.71,125.67,0.05083194]
[1742286867995,33.164,125.71,125.67,13.31544174]
[1742286867996,17.4686098,125.71,125.67,13.31544174]
[1742286868189,12.1596,125.71,125.68,7.9571]
[1742286868898,13.2646098,125.73,125.68,42.2246098]
[1742286869198,7.955,125.72,125.69,13.2646098]
[1742286869598,13.2646098,125.73,125.69,0.060145]
[1742286869800,7.956,125.7,125.69,0.060145]
[1742286872208,13.2646098,125.72,125.66,42.2446098]
[1742286872597,7.9569,125.69,125.66,50.2028098]
[1742286872799,7.9569,125.69,125.66,42.2446098]
[1742286873002,13.2646098,125.72,125.66,42.2446098]
[1742286873198,174.00291162,125.78,125.71,13.2646098]
[1742286873199,178.03208685,125.78,125.71,13.2646098]
[1742286873500,13.2646098,125.76,125.71,13.2646098]
[1742286873706,8.00544098,125.75,125.73,0.05795461]
[1742286874103,0.05204098,125.75,125.73,0.05795461]
[1742286875612,21.2181098,125.74,125.73,0.05795461]
[1742286875910,13.2646098,125.74,125.68,29.42]
[1742286876410,13.2646098,125.74,125.69,13.2646098]
[1742286876608,37.3732,125.75,125.69,13.2646098]
[1742286876808,42.6846098,125.75,125.69,13.2646098]
[1742286877011,0.0600241,125.73,125.71,0.05627258]
[1742286877907,13.3246339,125.73,125.71,0.05627258]
[1742286878611,21.2793339,125.73,125.71,0.05627258]
[1742286878910,13.3246339,125.73,125.71,0.05627258]
[1742286879209,7.9548,125.72,125.71,0.05627258]
[1742286879511,13.3246339,125.73,125.71,0.05627258]
[1742286880606,21.2790339,125.73,125.71,0.05627258]
[1742286880801,13.3246339,125.73,125.71,0.05627258]
[1742286881006,29.4,125.72,125.67,42.6846098]
[1742286881302,21.2203098,125.71,125.67,50.6422098]
[1742286881503,13.2646098,125.71,125.67,50.6422098]
[1742286881911,13.2646098,125.71,125.67,42.6846098]
[1742286882216,0.05383486,125.7,125.68,0.05208972]
[1742286882415,0.05383486,125.7,125.68,8.00898972]
[1742286885211,0.05383486,125.7,125.69,7.9567]
[1742286885408,0.05383486,125.7,125.68,0.05208972]
[1742286885804,0.05383486,125.7,125.68,8.00908972]
[1742286886000,0.05383486,125.7,125.68,0.05208972]
[1742286886414,0.05383486,125.7,125.69,7.9567]
[1742286888715,3.486e-05,125.7,125.69,21.2213098]
[1742286890410,144.52679842,125.76,125.74,7.9534]
[1742286891518,2.0132,125.76,125.74,7.9534]
[1742286891817,2.06406669,125.76,125.74,0.05440887]
[1742286892021,21.2175098,125.75,125.74,0.05440887]
[1742286892517,7.9529,125.75,125.74,0.05440887]
[1742286898220,8.00346669,125.76,125.74,0.05440887]
[1742286898417,0.05086669,125.76,125.74,0.05440887]
[1742286899419,8.00346669,125.76,125.74,0.05440887]
[1742286900222,0.05086669,125.76,125.74,8.00790887]
[1742286901318,8.00346669,125.76,125.74,0.05440887]
[1742286902426,21.2175098,125.75,125.74,0.05440887]
[1742286902729,42.8246098,125.75,125.71,262.56]
[1742286902921,13.2646098,125.73,125.71,262.56]
[1742286903128,7.9548,125.72,125.71,262.56]
[1742286903527,37.5948,125.72,125.71,262.56]
[1742286904126,50.8594098,125.72,125.71,262.56]
[1742286904325,7.9554,125.71,125.7,0.05551866]
[1742286904528,21.2200098,125.71,125.7,0.05551866]
[1742286905025,21.2200098,125.71,125.66,262.52]
[1742286905026,7.9574,125.68,125.66,262.52]
[1742286905228,13.2646098,125.69,125.66,262.52]
[1742286906133,21.2210098,125.7,125.66,270.4785]
[1742286906430,0.05039676,125.69,125.66,270.53181122]
[1742286906620,13.31500656,125.69,125.66,262.57331122]
[1742286906820,7.9577,125.68,125.66,262.57331122]
[1742286907024,13.31500656,125.69,125.66,262.57331122]
[1742286907329,0.05039676,125.69,125.67,21.2219098]
[1742286907529,0.05039676,125.69,125.67,13.2646098]
[1742286907825,0.05039676,125.69,125.68,13.2646098]
[1742286908635,0.05039676,125.69,125.68,21.2219098]
[1742286908937,0.05039676,125.69,125.68,13.2646098]
[1742286910037,0.05039676,125.69,125.68,21.2219098]
[1742286910340,0.05039676,125.69,125.68,13.2646098]
[1742286910936,15.03941582,125.75,125.68,21.2246098]
[1742286911140,121.55206361,125.76,125.74,13.2646098]
[1742286911935,101.48536361,125.76,125.75,21.2175098]
[1742286912140,101.31706361,125.76,125.75,21.2175098]
[1742286913137,101.31706361,125.76,125.75,7.9529]
[1742286914140,101.31706361,125.76,125.75,28.43629404]
[1742286914837,0.05336461,125.77,125.76,7.9522]
[1742286915038,0.05336461,125.77,125.76,37.6322]
[1742286919942,0.05336461,125.77,125.76,7.9522]
[1742286923841,0.05336461,125.77,125.75,37.5126]
[1742286924344,0.05336461,125.77,125.76,7.9522]
[1742286933252,0.05336461,125.77,125.76,21.05889112]
[1742286933445,0.05336461,125.77,125.76,7.9522]
[1742286933644,0.05336461,125.77,125.75,50.61919112]
[1742286933847,0.05336461,125.77,125.75,42.66669112]
[1742286934055,0.05336461,125.77,125.75,50.61919112]
[1742286934549,0.05336461,125.77,125.75,42.66669112]
[1742286936352,8.00506461,125.77,125.75,42.66669112]
[1742286936649,0.05336461,125.77,125.75,50.61919112]
[1742286937050,0.05336461,125.77,125.76,7.9522]
[1742286937348,0.05336461,125.77,125.76,21.05889112]
[1742286940750,0.05336461,125.77,125.76,283.45889112]
[1742286944355,13.10669112,125.83,125.76,275.50669112]
[1742286944550,13.10669112,125.83,125.78,13.10669112]
[1742286944746,13.10669112,125.83,125.79,29.2]
[1742286944951,7.9493,125.81,125.79,29.2]
[1742286945158,13.10669112,125.82,125.79,37.1501]
[1742286945354,7.9488,125.82,125.79,29.2]
[1742286945553,0.05701345,125.82,125.79,29.25151052]
[1742286946152,8.00571345,125.82,125.79,29.25151052]
[1742286946551,7.9493,125.81,125.79,37.20151052]
[1742286946858,7.9493,125.81,125.79,29.25151052]
[1742286947459,7.9491,125.81,125.79,29.25151052]
[1742286948257,13.10669112,125.81,125.79,29.25151052]
[1742286948557,13.10669112,125.81,125.79,0.05151052]
[1742286949250,7.9497,125.8,125.79,0.05151052]
[1742286949450,21.05639112,125.8,125.79,0.05151052]
[1742286949654,13.10669112,125.8,125.76,262.4]
[1742286949855,21.05759112,125.79,125.76,270.3521]
[1742286950057,13.10669112,125.79,125.76,270.3521]
[1742286950652,7.9511,125.78,125.76,270.40368551]
[1742286951150,21.11017142,125.79,125.76,270.40368551]
[1742286951354,13.15947142,125.79,125.76,270.40368551]
[1742286952560,7.9511,125.78,125.76,270.40368551]
[1742286952759,0.0527803,125.79,125.76,270.40368551]
[1742286953760,7.9512,125.78,125.76,270.40368551]
[1742286953959,7.9512,125.78,125.76,262.45158551]
[1742286954664,8.0033803,125.79,125.76,270.40348551]
[1742286955461,0.0527803,125.79,125.76,262.45158551]
[1742286956159,7.9513,125.78,125.76,262.45158551]
[1742286956359,0.0527803,125.79,125.76,262.45158551]
[1742286956560,7.9515,125.78,125.76,262.45158551]
[1742286957758,7.951,125.78,125.76,262.45158551]
[1742286958062,17.40187142,125.79,125.76,262.45158551]
[1742286958763,21.05829112,125.77,125.76,0.05158551]
[1742286958963,13.10669112,125.77,125.72,7.9547]
[1742286959359,7.9533,125.75,125.72,7.9547]
[1742286959564,13.10669112,125.77,125.71,312.52179112]
[1742286959862,44.05032376,125.78,125.71,312.52179112]
[1742286959863,7.9538,125.74,125.71,312.52179112]
[1742286960059,7.9538,125.74,125.73,0.0550286]
[1742286962368,21.06049112,125.74,125.73,0.0550286]
[1742286962966,0.05780909,125.75,125.73,0.0550286]
[1742286963169,0.05780909,125.75,125.73,13.16171972]
[1742286963563,0.05780909,125.75,125.73,0.0550286]
[1742286964066,8.01080909,125.75,125.73,0.0550286]
[1742286964968,7.9535,125.74,125.73,0.0550286]
[1742286974877,21.06019112,125.74,125.73,0.0550286]
[1742286976775,7.9535,125.74,125.73,0.0550286]
[1742286978073,8.01090909,125.75,125.73,0.0550286]
[1742286978674,0.05780909,125.75,125.74,7.9535]
[1742286978974,0.05780909,125.75,125.73,0.0550286]
[1742286979571,8.01080909,125.75,125.73,0.0550286]
[1742286980579,8.01080909,125.75,125.73,8.0091286]
[1742286980980,0.05780909,125.75,125.73,8.0091286]
[1742286981781,0.05780909,125.75,125.74,7.9535]
[1742286982475,44.26737114,125.77,125.76,7.9522]
[1742286982682,44.26737114,125.77,125.76,50.73889112]
[1742286984179,11.10735251,125.78,125.77,7.9516]
[1742286984384,11.10735251,125.78,125.77,283.53829112]
[1742286985982,5.251e-05,125.78,125.77,283.53829112]
[1742286986185,121.22016681,125.79,125.78,7.951]
[1742286986382,121.22016681,125.79,125.78,21.05769112]
[1742286987683,0.05851233,125.8,125.79,7.9503]
[1742286987884,0.05851233,125.8,125.79,50.65699112]
[1742286988085,1.233e-05,125.8,125.79,50.65699112]
[1742286988784,44.25474125,125.82,125.81,7.9491]
[1742286988986,44.25474125,125.82,125.81,21.05579112]
[1742286991090,0.05081812,125.83,125.82,7.9484]
[1742286991282,0.05081812,125.83,125.82,50.77509112]
[1742286992185,0.05081812,125.83,125.82,7.9484]
[1742286992383,0.05081812,125.83,125.82,13.10669112]
[1742286992987,0.05081812,125.83,125.82,21.05509112]
[1742286994089,0.05081812,125.83,125.82,13.10669112]
[1742286994290,0.05081812,125.83,125.81,13.10669112]
[1742286995486,0.05081812,125.83,125.8,0.05909009]